Workbook

Sheet Plan2
B2: MACROITENS | G2: EVENTOS
A3: 1 | B3: SERVIÇOS INICIAIS | C3: 45349.51 | F3: 1 | G3: MOBILIZAÇÃO, SERVIÇOS INICIAIS E INSTALAÇÃO DO CANTEIRO DE OBRAS | H3: =C26+C3 -> 48785.84
A4: 2 | B4: MOBILIZAÇÃO E DESMOBILIZAÇÃO | C4: 5438.33 | F4: 2 | G4: MOVIMENTOS DE TERRAS E INFRAESTRUTURA (FUNDAÇÕES) | H4: =C5+C6 -> 73190.76
A5: 3 | B5: MOVIMENTO DE TERRA | C5: 1838.11 | F5: 3 | G5: SUPRAESTRUTURA E ALVENARIAS | H5: =C7+C8 -> 58897.2
A6: 4 | B6: INFRAESTRUTURA | C6: 71352.65 | F6: 4 | G6: COBERTURA | H6: =C9 -> 55775.69
A7: 5 | B7: SUPRAESTRUTURA | C7: 33419.4 | F7: 5 | G7: PAVIMENTAÇÃO INTERNA E EXTERNA | H7: =C11 -> 29207.75
A8: 6 | B8: ALVENARIAS | C8: 25477.8 | F8: 6 | G8: REVESTIMENTOS DE PAREDES, PINTURAS, ESQUADRIAS E VIDROS | H8: =C10+C14+C13+C12 -> 123345.68
A9: 7 | B9: COBERTURA | C9: 55775.69 | F9: 7 | G9: INSTALAÇÕES HIDROSSANITÁRIAS E INSTALAÇÕES ELÉTRICAS | H9: =C16+C17 -> 70292.5
A10: 8 | B10: REVESTIMENTOS DE PAREDES INTERNO/EXTERNO | C10: 46516.03 | F10: 8 | G10: LOUÇAS, METAIS, APARELHOS SANITÁRIOS, SPCI E SERVIÇOS DIVERSOS | H10: =C15+C18+C19 -> 29617.83
A11: 9 | B11: PAVIMENTAÇÃO INTERNA/EXTERNA | C11: 29207.75 | F11: 9 | G11: ADMINISTRAÇÃO DA OBRA | H11: =C20 -> 32195.3
A12: 10 | B12: ESQUADRIAS, FERRAGENS E FECHADURAS | C12: 48116.88 | F12: 10 | G12: LIMPEZA FINAL, ENTREGA DA OBRA E DESMOBILIZAÇÃO | H12: =C21+C27 -> 2316.37
A13: 11 | B13: VIDROS | C13: 6519.33
A14: 12 | B14: PINTURA INTERNA/EXTERNA | C14: 22193.44 | G14: TOTAL | H14: =SUM(H3:H13) -> 523624.92
A15: 13 | B15: LOUÇAS, METAIS E APARELHOS SANITÁRIOS | C15: 7763.68
A16: 14 | B16: INSTALAÇÕES HIDROSSANITÁRIAS | C16: 36485.37
A17: 15 | B17: INSTALAÇÕES ELÉTRICAS | C17: 33807.13
A18: 16 | B18: SISTEMA DE PREVENÇÃO E COMBATE A INCÊNDIO | C18: 4111.07
A19: 17 | B19: SERVIÇOS DIVERSOS | C19: 17743.08
A20: 18 | B20: ADMINISTRAÇÃO DA OBRA | C20: 32195.3
A21: 19 | B21: LIMPEZA FINAL E ENTREGA DA OBRA | C21: 314.37
B23: TOTAL | C23: =SUM(C3:C22) -> 523624.92
B26: MOBILIZAÇÃO | C26: 3436.33
B27: DESMOBILIZAÇÃO | C27: 2002
C29: =SUM(C26:C28) -> 5438.33

Sheet Plan1
B1: PREFEITURA MUNICIPAL DE PORTO ALEGRE
B2: FUNDAÇÃO DE ASSISTÊNCIA SOCIAL E CIDADANIA
B4: EVENTOGRAMA
B5: Objeto: Execução do Centro de Convivência - COHAB CAVALHADA | E5: Tabela Não Desonerada
B6: Local: Rua Paulo Maciel, nº 220 - Bairro: Cavalhada
A8: Nº do Evento | B8: Título do Evento | C8: Mês 1 | D8: Mês 2 | E8: Mês 3 | F8: Mês 4 | G8: Mês 5 | H8: Mês 6 | I8: Mês 7 | J8: Total
A9: 1 | B9: MOBILIZAÇÃO, SERVIÇOS INICIAIS E INSTALAÇÃO DO CANTEIRO DE OBRAS | C9: 48785.84 | J9: =SUM(C9:I9) -> 48785.84
A10: 2 | B10: MOVIMENTOS DE TERRAS E INFRAESTRUTURA (FUNDAÇÕES) | E10: 73190.76 | J10: =SUM(C10:I10) -> 73190.76
A11: 3 | B11: SUPRAESTRUTURA E ALVENARIAS | G11: 58897.2 | J11: 58897.2
A12: 4 | B12: COBERTURA | H12: 55775.69 | J12: 55775.69
A13: 5 | B13: PAVIMENTAÇÃO INTERNA E EXTERNA | H13: 29207.75 | J13: 29207.75
A14: 6 | B14: REVESTIMENTOS DE PAREDES, PINTURAS, ESQUADRIAS E VIDROS | I14: 123345.68 | J14: 123345.68
A15: 7 | B15: INSTALAÇÕES HIDROSSANITÁRIAS E INSTALAÇÕES ELÉTRICAS | H15: 70292.5 | J15: 70292.5
A16: 8 | B16: LOUÇAS, METAIS, APARELHOS SANITÁRIOS, SPCI E SERVIÇOS DIVERSOS | I16: 29617.83 | J16: 29617.83
A17: 9 | B17: ADMINISTRAÇÃO DA OBRA | C17: =I23*C22 -> 3196.133669 | E17: =I23*E22 -> 4794.986667 | G17: =I23*G22 -> 3858.564779 | H17: =I23*H22 -> 10172.67838 | I17: =I23*I22 -> 10172.9365 | J17: 32195.3
A18: 10 | B18: LIMPEZA FINAL, ENTREGA DA OBRA E DESMOBILIZAÇÃO | I18: 2316.37 | J18: 2316.37 | K18: TOTAL
J19: =SUM(J9:J18) -> 523624.92
B20: VALOR DA PARCELA | C20: =SUM(C9:C18) -> 51981.97367 | D20: 0 | E20: 77985.74667 | F20: 0 | G20: 62755.76478 | H20: 165448.6184 | I20: 165452.8165 | K20: =SUM(C20:J20) -> 523624.92
B21: VALOR DA PARCELA | C21: =C9 -> 48785.84 | D21: =SUM(D9:D20) -> 0 | E21: =E10 -> 73190.76 | F21: =SUM(F9:F20) -> 0 | G21: =G11 -> 58897.2 | H21: =H12+H13+H15 -> 155275.94 | I21: =I14+I16+I18 -> 155279.88 | K21: =SUM(C21:J21) -> 491429.62
B22: PERCENTUAL | C22: =C21/K21 -> 0.09927329981 | D22: =D21/K21 -> 0 | E22: =E21/K21 -> 0.1489343683 | F22: =F21/K21 -> 0 | G22: =G21/K21 -> 0.1198486978 | H22: =H21/K21 -> 0.3159678084 | I22: =I21/K21 -> 0.3159758258
I23: 32195.3
C25: =I23*C22 -> 3196.133669 | E25: =I23*E22 -> 4794.986667 | G25: =I23*G22 -> 3858.564779 | H25: =I23*H22 -> 10172.67838 | I25: =I23*I22 -> 10172.9365 | K25: =I25+H25+G25+E25+C25 -> 32195.3

Sheet Plan3
